bitfinex-derivatives/quotes_BTCF0:USTF0_20251120
["timestamp","ask_amount","ask_price","bid_price","bid_amount"]
[1763634781364,0.00016299,92021.0,92020.0,0.04682]
[1763634781556,0.00016299,92021.0,92020.0,0.15622519]
[1763634783661,0.00016299,92021.0,92020.0,0.04844119]
[1763634783963,0.05039102,92021.0,92020.0,0.00262119]
[1763634784273,0.41119102,92021.0,92020.0,0.00262119]
[1763634785259,0.41119102,92021.0,92020.0,0.04867119]
[1763634785460,0.05039102,92021.0,92020.0,0.04867119]
[1763634785666,0.05039102,92021.0,92020.0,0.04767119]
[1763634785866,0.05039102,92021.0,92020.0,0.00162119]
[1763634786059,0.05039102,92021.0,92020.0,0.00062119]
[1763634786368,0.05039102,92021.0,92020.0,0.001]
[1763634786763,0.05039102,92021.0,92020.0,0.00162119]
[1763634786964,0.05039102,92021.0,92020.0,0.00062119]
[1763634787165,0.05039102,92021.0,92020.0,0.04667119]
[1763634788263,0.05039102,92021.0,92020.0,0.00062119]
[1763634788867,0.05039102,92021.0,92020.0,0.15545519]
[1763634789073,0.05039102,92021.0,92020.0,0.15645519]
[1763634789573,0.00236102,92021.0,92020.0,0.15645519]
[1763634789765,0.00236102,92021.0,92020.0,0.15745519]
[1763634790078,0.02383,92025.0,92024.0,0.04605]
[1763634790372,0.1549681,92025.0,92024.0,0.04824803]
[1763634791561,0.1549681,92025.0,92024.0,0.00319803]
[1763634791966,0.1549681,92025.0,92024.0,0.02560803]
[1763634792168,0.40699,92032.0,92031.0,0.154821]
[1763634792367,0.42052,92032.0,92031.0,0.00219803]
[1763634794375,0.40699,92032.0,92031.0,0.04824803]
[1763634794975,0.42052,92032.0,92031.0,0.00219803]
[1763634796481,0.05972,92024.0,92023.0,0.03864674]
[1763634796680,0.1684993,92024.0,92023.0,0.04084477]
[1763634797076,0.1549693,92024.0,92023.0,0.08689477]
[1763634797283,0.1549693,92024.0,92023.0,0.04824803]
[1763634797580,0.04619,92029.0,92028.0,0.1548245]
[1763634797779,0.04619,92029.0,92028.0,0.15702253]
[1763634798185,0.04619,92029.0,92028.0,0.51782253]
[1763634798588,0.02399299,92034.0,92033.0,0.1548186]
[1763634798779,0.00016299,92034.0,92033.0,0.15701663]
[1763634799088,0.00016299,92034.0,92033.0,0.19567491]
[1763634799478,0.00016299,92034.0,92033.0,0.15701663]
[1763634799678,0.00016299,92034.0,92033.0,0.19567491]
[1763634800281,0.00016299,92034.0,92033.0,0.15701663]
[1763634800979,0.04635299,92034.0,92033.0,0.15701663]
[1763634801379,0.04635299,92034.0,92033.0,0.04824803]
[1763634801784,0.04635299,92034.0,92033.0,0.04924803]
[1763634802385,0.04635299,92034.0,92033.0,0.04824803]
[1763634802583,0.04635299,92034.0,92033.0,0.04924803]
[1763634803389,0.04635299,92034.0,92033.0,0.05024803]
[1763634803791,0.04635299,92034.0,92033.0,0.00419803]
[1763634803991,0.04635299,92034.0,92033.0,0.02660803]
[1763634804190,0.04635299,92034.0,92033.0,0.05024803]
[1763634804886,0.04635299,92034.0,92033.0,0.04824803]
[1763634805093,0.00016299,92034.0,92033.0,0.04924803]
[1763634805885,0.04635299,92034.0,92033.0,0.04824803]
[1763634806801,0.04635299,92034.0,92033.0,0.001]
[1763634806986,0.51199299,92034.0,92033.0,0.001]
[1763634807186,0.1549809,92023.0,92022.0,0.00016299]
[1763634807486,0.1549809,92023.0,92022.0,0.00236102]
[1763634807889,0.1549809,92023.0,92022.0,0.00016299]
[1763634808087,0.1531404,92015.0,92013.0,0.03873202]
[1763634808390,0.04434,92009.0,92008.0,0.00219803]
[1763634808694,0.1531475,92009.0,92008.0,0.02386803]
[1763634810393,0.1531475,92009.0,92008.0,0.02486803]
[1763634810596,0.1531475,92009.0,92008.0,0.00319803]
[1763634811189,0.1531475,92009.0,92008.0,0.00419803]
[1763634812400,0.1531475,92009.0,92001.0,0.03876396]
[1763634812401,0.1519546,92003.0,92001.0,0.03876396]
[1763634812598,0.05567,92000.0,91999.0,0.00016299]
[1763634812793,0.41647,92000.0,91999.0,0.00016299]
[1763634814003,0.41647,92000.0,91999.0,0.00236102]
[1763634814196,0.40394,92000.0,91999.0,0.00236102]
[1763634815097,0.40394,92000.0,91999.0,0.00016299]
[1763634815301,0.1519723,91988.0,91986.0,0.03876396]
[1763634815497,0.1519723,91988.0,91968.0,0.01287]
[1763634815498,0.04314,91984.0,91983.0,0.03876396]
[1763634815694,0.04314,91979.0,91978.0,0.38401]
[1763634815995,0.04314,91979.0,91978.0,0.36299803]
[1763634816391,0.40394,91979.0,91978.0,0.00219803]
[1763634816593,0.40394,91979.0,91978.0,0.04091426]
[1763634816799,0.40394,91979.0,91978.0,0.04191426]
[1763634817094,0.1088489,91974.0,91973.0,0.03871623]
[1763634817297,0.04314,91970.0,91969.0,0.00010932]
[1763634817495,0.1520066,91959.0,91958.0,0.03871623]
[1763634817703,0.1520137,91953.0,91952.0,0.09594623]
[1763634817895,0.1520137,91953.0,91952.0,0.09814426]
[1763634818203,0.1520137,91953.0,91952.0,0.05942803]
[1763634818204,0.04314,91953.0,91952.0,0.05942803]
[1763634818909,0.38279,91959.0,91958.0,0.04436]
[1763634819107,0.38279,91959.0,91958.0,0.04655803]
[1763634819416,0.5128066,91959.0,91958.0,0.04655803]
[1763634819602,0.5128066,91959.0,91958.0,0.00219803]
[1763634820799,0.5128066,91959.0,91958.0,0.02540803]
[1763634821208,0.5128066,91959.0,91958.0,0.04655803]
[1763634821404,0.5128066,91959.0,91958.0,0.02540803]
[1763634821599,0.5128066,91959.0,91958.0,0.04436]
[1763634821804,0.5128066,91959.0,91958.0,0.04655803]
[1763634824702,0.3608,91959.0,91958.0,0.04655803]
[1763634824897,0.00016308,91962.0,91961.0,0.04436]
[1763634825102,0.00016308,91962.0,91961.0,0.04655803]
[1763634825306,0.04330308,91962.0,91961.0,0.00219803]
[1763634825613,0.1520114,91955.0,91954.0,0.04436]
[1763634825802,0.1520114,91955.0,91954.0,0.00219803]
[1763634826210,0.1520114,91955.0,91954.0,0.02540803]
[1763634826400,0.1520114,91955.0,91954.0,0.04655803]
[1763634826919,0.1520232,91945.0,91944.0,0.41803]
[1763634827107,0.04314,91945.0,91944.0,0.42022803]
[1763634827296,0.1520179,91950.0,91949.0,0.04436]
[1763634827607,0.1520179,91950.0,91949.0,0.15543653]
[1763634827809,0.1520179,91950.0,91949.0,0.04655803]
[1763634828706,0.04314,91950.0,91949.0,0.04655803]
[1763634829502,0.04314,91950.0,91949.0,0.15544423]
[1763634829704,0.04314,91950.0,91949.0,0.04655803]
[1763634831011,0.40394,91950.0,91949.0,0.02540803]
[1763634831208,0.04314,91938.0,91937.0,0.04446196]
[1763634831409,0.04314,91938.0,91937.0,0.04665999]
[1763634835011,0.3608,91941.0,91940.0,0.04436]
[1763634835220,0.38279,91950.0,91949.0,0.04436]
[1763634835411,0.40394,91950.0,91949.0,0.04655803]
[1763634835809,0.3608,91950.0,91949.0,0.04655803]
[1763634836520,0.3618,91950.0,91949.0,0.04655803]
[1763634837611,0.04314,91958.0,91957.0,0.04436]
[1763634837812,0.04314,91958.0,91957.0,0.04655803]
[1763634838022,0.1520078,91958.0,91957.0,0.02540803]
[1763634838524,0.04314,91958.0,91957.0,0.04655803]
[1763634839417,0.04414,91958.0,91957.0,0.04655803]
[1763634839822,0.04514,91958.0,91957.0,0.04655803]
[1763634840226,0.002,91958.0,91957.0,0.04655803]
[1763634841016,0.002,91958.0,91957.0,0.40735803]
[1763634841221,0.00016308,91962.0,91961.0,0.1532243]
[1763634841422,0.00016308,91962.0,91961.0,0.15542233]
[1763634841819,0.46576,91980.0,91961.0,0.04655803]
[1763634841820,0.1088448,91978.0,91961.0,0.04655803]
[1763634842018,0.1603354,91977.0,91976.0,0.01287]
[1763634842219,0.1603354,91977.0,91976.0,0.07468803]
[1763634842618,0.1603354,91977.0,91976.0,0.05617803]
[1763634844119,0.1603354,91977.0,91976.0,0.07468803]
[1763634844921,0.05149,91977.0,91976.0,0.07468803]
[1763634847520,0.05149,91977.0,91976.0,0.05617803]
[1763634849122,0.1603354,91977.0,91976.0,0.05617803]
[1763634849434,0.05149,91977.0,91976.0,0.05617803]
[1763634850330,0.02881,91980.0,91979.0,0.05398]
[1763634850526,0.05149,91980.0,91979.0,0.05617803]
[1763634851328,0.16048788,91986.0,91985.0,0.05398]
[1763634851538,0.16048788,91986.0,91985.0,0.05617803]
[1763634853230,0.16048788,91986.0,91985.0,0.16501393]
[1763634853633,0.16048788,91986.0,91985.0,0.05617803]
[1763634854228,0.16048788,91986.0,91985.0,0.00219803]
[1763634854428,0.16048788,91986.0,91985.0,0.03319803]
[1763634855029,0.16048788,91986.0,91985.0,0.05617803]
[1763634855830,0.52128788,91986.0,91985.0,0.00219803]
[1763634856030,0.1603425,91971.0,91967.0,0.00016308]
[1763634856228,0.1603425,91971.0,91970.0,0.36299803]
[1763634856733,0.1376567,91977.0,91976.0,0.1088451]
[1763634856947,0.1603367,91977.0,91976.0,0.16502313]
[1763634857328,0.02881,91977.0,91976.0,0.16502313]
[1763634857532,0.1088444,91978.0,91977.0,0.1628218]
[1763634857737,0.1376544,91978.0,91977.0,0.16501983]
[1763634857939,0.1603344,91978.0,91977.0,0.16501983]
[1763634858139,0.1603344,91978.0,91977.0,0.05617803]
[1763634858538,0.05149,91978.0,91977.0,0.05617803]
[1763634859138,0.05249,91978.0,91977.0,0.05617803]
[1763634861339,0.05149,91978.0,91977.0,0.05617803]
[1763634862827,0.05149,91978.0,91977.0,0.00219803]
[1763634863232,0.05149,91971.0,91970.0,0.3608]
[1763634863432,0.1603425,91971.0,91970.0,0.36299803]
[1763634863635,0.160346,91968.0,91967.0,0.00016308]
[1763634863940,0.160346,91968.0,91967.0,0.00236111]
[1763634864735,0.177546,91968.0,91967.0,0.00016308]
[1763634869342,0.177546,91968.0,91967.0,0.03116308]
[1763634869546,0.177546,91968.0,91967.0,0.00016308]
[1763634874746,0.1642755,91960.0,91959.0,0.0387772]
[1763634875049,0.1642755,91960.0,91959.0,0.04097523]
[1763634875246,0.1642755,91960.0,91959.0,0.00219803]
[1763634875947,0.1642755,91960.0,91959.0,0.00319803]
[1763634876249,0.1642755,91960.0,91959.0,0.00419803]
[1763634878147,0.1642755,91960.0,91959.0,0.05988803]
[1763634879145,0.1642755,91960.0,91959.0,0.03167803]
[1763634880041,0.1642755,91960.0,91959.0,0.05988803]
[1763634880247,0.1642755,91960.0,91959.0,0.09864818]
[1763634884452,0.1642755,91960.0,91959.0,0.05988803]
[1763634886146,0.1642755,91960.0,91959.0,0.00419803]
[1763634886348,0.1642755,91960.0,91959.0,0.03167803]
[1763634887857,0.1642755,91960.0,91959.0,0.002]
[1763634888360,0.05541,91945.0,91944.0,0.03875483]
[1763634888656,0.05541,91943.0,91938.0,0.05805246]
[1763634888857,0.05541,91943.0,91942.0,0.40174158]
[1763634889162,0.05541,91943.0,91942.0,0.36299803]
[1763634890048,0.05541,91943.0,91942.0,0.39047803]
[1763634890747,0.05541,91943.0,91942.0,0.36299803]
[1763634891462,0.05541,91943.0,91942.0,0.00219803]
[1763634891947,0.1643015,91938.0,91937.0,0.05579196]
[1763634892148,0.1676015,91938.0,91937.0,0.00010196]
[1763634892550,0.1643015,91938.0,91937.0,0.05798999]
[1763634892859,0.2781215,91938.0,91937.0,0.00229999]
[1763634893060,0.2781215,91938.0,91937.0,0.00010196]
[1763634893248,0.05541,91931.0,91930.0,0.05569]
[1763634893449,0.05541,91931.0,91930.0,0.05788803]
[1763634894153,0.05551196,91931.0,91930.0,0.05788803]
[1763634894356,0.05541,91927.0,91926.0,0.02775196]
[1763634895259,0.1643146,91927.0,91926.0,0.02775196]
[1763634895562,0.1643146,91927.0,91926.0,0.05596196]
[1763634895954,0.1643146,91927.0,91926.0,0.02775196]
[1763634896763,0.1643146,91927.0,91926.0,0.05596196]
[1763634898156,0.1643146,91927.0,91926.0,0.05815999]
[1763634899763,0.1643146,91927.0,91926.0,0.00027196]
[1763634900962,0.1643146,91927.0,91926.0,0.02775196]
[1763634902259,0.1643146,91927.0,91926.0,0.05596196]
[1763634904555,0.1643146,91927.0,91926.0,0.05815999]
[1763634909485,0.1643146,91927.0,91926.0,0.05596196]
[1763634909858,0.5251146,91927.0,91926.0,0.00027196]
[1763634910165,0.5251146,91927.0,91917.0,0.3608]
[1763634910166,0.1619052,91918.0,91917.0,0.3855]
[1763634910565,0.1619052,91918.0,91917.0,0.41129]
[1763634911070,0.1619052,91918.0,91917.0,0.41348803]
[1763634911271,0.1089152,91918.0,91917.0,0.41348803]
[1763634913971,0.2138727,91921.0,91920.0,0.06472]
[1763634914171,0.2138727,91921.0,91920.0,0.06691803]
[1763634914364,0.2138727,91921.0,91920.0,0.17583083]
[1763634914761,0.2138727,91921.0,91920.0,0.06691803]
[1763634915464,0.2396027,91921.0,91920.0,0.06691803]
[1763634915770,0.2396027,91921.0,91920.0,0.17583083]
[1763634916161,0.2668627,91921.0,91920.0,0.06691803]
[1763634919065,0.2396027,91921.0,91920.0,0.06691803]
[1763634919266,0.2668627,91921.0,91920.0,0.10566158]
[1763634920368,0.2668627,91921.0,91920.0,0.06691803]
[1763634923576,0.2668627,91921.0,91920.0,0.12497049]
[1763634925479,0.2668627,91921.0,91920.0,0.06691803]
[1763634925675,0.2668627,91921.0,91920.0,0.10587174]
[1763634926779,0.2668627,91921.0,91920.0,0.21478454]
[1763634927070,0.2668627,91921.0,91920.0,0.17583083]
[1763634927377,0.2668627,91921.0,91920.0,0.06691803]
[1763634927976,0.1089127,91921.0,91920.0,0.06691803]
[1763634928278,0.10907167,91927.0,91926.0,0.1545857]
[1763634928476,0.10907167,91927.0,91926.0,0.15678373]
[1763634928871,0.13280167,91927.0,91926.0,0.15678373]
[1763634930169,0.15643167,91927.0,91926.0,0.08684396]
[1763634930477,0.15643167,91927.0,91926.0,0.08683366]
[1763634930671,0.00010196,91931.0,91930.0,0.167451]
[1763634930875,0.00364,91970.0,91930.0,0.167451]
[1763634930876,0.03920181,91945.0,91943.0,0.1088856]
[1763634931179,0.04736,91958.0,91957.0,0.04568]
[1763634931371,0.04736,91958.0,91957.0,0.04787803]
[1763634931567,0.0379478,91958.0,91957.0,0.04787803]
[1763634934070,0.0379478,91958.0,91957.0,0.00219803]
[1763634936179,0.0389478,91958.0,91957.0,0.00219803]
[1763634936370,0.0389478,91958.0,91957.0,0.04967803]
[1763634937381,0.0389478,91958.0,91957.0,0.00219803]
[1763634938067,0.0389478,91958.0,91957.0,0.02690803]
[1763634938271,0.0389478,91958.0,91957.0,0.04967803]
[1763634938672,0.0379478,91958.0,91957.0,0.04967803]
[1763634938866,0.0389478,91958.0,91957.0,0.04967803]
[1763634939382,0.0379478,91958.0,91957.0,0.04967803]
[1763634940273,0.0379478,91958.0,91957.0,0.00219803]
[1763634940469,0.0379478,91958.0,91948.0,0.00016317]
[1763634940776,0.5094785,91949.0,91948.0,0.0023612]
[1763634940976,0.6143985,91949.0,91948.0,0.00016317]
[1763634942080,0.1486915,91938.0,91937.0,0.029038]
[1763634942380,0.1486915,91938.0,91937.0,0.07871603]
[1763634944185,0.1486915,91938.0,91937.0,0.04967803]
[1763634945675,0.1088902,91940.0,91939.0,0.02471]
[1763634945873,0.1287902,91940.0,91939.0,0.04967803]
[1763634946071,0.1486902,91940.0,91939.0,0.04967803]
[1763634946284,0.1486902,91940.0,91939.0,0.07872554]
[1763634946483,0.1486902,91940.0,91939.0,0.04967803]
[1763634948079,0.1496902,91940.0,91939.0,0.04967803]
[1763634948488,0.001,91940.0,91939.0,0.04967803]
[1763634948684,0.5746088,91941.0,91939.0,0.04967803]
[1763634948685,0.3608,91941.0,91940.0,0.1563692]
[1763634948980,0.00016317,91947.0,91946.0,0.1563621]
[1763634949172,0.00016317,91947.0,91946.0,0.15856013]
[1763634949377,0.02006317,91947.0,91946.0,0.15856013]
[1763634951983,0.03996317,91947.0,91946.0,0.04967803]
[1763634955488,0.03996317,91947.0,91946.0,0.08858756]
[1763634955684,0.03996317,91947.0,91946.0,0.04967803]
[1763634956478,0.03996317,91947.0,91946.0,0.08858756]
[1763634956677,0.12270017,91947.0,91946.0,0.08858756]
[1763634957482,0.12270017,91947.0,91946.0,0.04967803]
[1763634958282,0.12270017,91947.0,91946.0,0.08845872]
[1763634958590,0.12270017,91947.0,91946.0,0.08847029]
[1763634959590,0.12270017,91947.0,91946.0,0.04967803]
[1763634961077,0.12370017,91947.0,91946.0,0.04967803]
[1763634961481,0.12270017,91947.0,91946.0,0.04967803]
[1763634961687,0.1088832,91945.0,91943.0,0.0583643]
[1763634961891,0.1088929,91937.0,91926.0,0.07768636]
[1763634962077,0.1088929,91937.0,91911.0,0.40954]
[1763634962078,0.1089084,91924.0,91911.0,0.40954]
[1763634962390,0.1089211,91913.0,91912.0,0.05093803]
[1763634962983,0.1089211,91913.0,91912.0,0.02620803]
[1763634964090,0.1089211,91913.0,91912.0,0.05093803]
[1763634965384,0.1089211,91913.0,91900.0,0.01439]
[1763634965385,0.1089294,91906.0,91900.0,0.01439]
[1763634965588,0.1089354,91901.0,91900.0,0.0384]
[1763634965785,0.1089354,91901.0,91900.0,0.06313]
[1763634965995,0.00016317,91922.0,91921.0,0.1089117]
[1763634966288,0.01355,91938.0,91935.0,0.1088949]
[1763634966484,0.01355,91945.0,91928.0,0.1089028]
[1763634966485,0.1088877,91942.0,91937.0,0.00219803]
[1763634966687,0.04793,91942.0,91941.0,0.3608]
[1763634966891,0.04793,91942.0,91941.0,0.36299803]
[1763634970411,0.04793,91942.0,91941.0,0.47188603]
[1763634970702,0.04793,91942.0,91941.0,0.36299803]
[1763634973215,0.04793,91942.0,91941.0,0.47188603]
[1763634975108,0.03796,91945.0,91944.0,0.1088844]
[1763634975418,0.03796,91945.0,91944.0,0.11108243]
[1763634975807,0.06148,91945.0,91944.0,0.11108243]
[1763634976101,0.06148,91945.0,91944.0,0.00219803]
[1763634977209,0.06248,91945.0,91944.0,0.00219803]
[1763634979521,0.04793,91942.0,91941.0,0.3608]
[1763634979819,0.04793,91942.0,91941.0,0.36299803]
[1763634981421,0.1568275,91933.0,91932.0,0.00016317]
[1763634981715,0.01355,91938.0,91935.0,0.1088949]
[1763634981919,0.01355,91938.0,91937.0,0.00219803]
[1763634982114,0.06148,91938.0,91937.0,0.00219803]
[1763634982721,0.04793,91933.0,91932.0,0.00016317]
[1763634982916,0.1568274,91933.0,91932.0,0.00016317]
[1763634984220,0.1578274,91933.0,91932.0,0.00016317]
[1763634984532,0.1588274,91933.0,91932.0,0.00016317]
[1763634984822,0.1578274,91933.0,91932.0,0.00016317]
[1763634985023,0.1588274,91933.0,91932.0,0.00016317]
[1763634986017,0.1578274,91933.0,91932.0,0.00016317]
[1763634986214,0.1588274,91933.0,91932.0,0.00016317]
[1763634986628,0.1578274,91933.0,91932.0,0.00016317]
[1763634986926,0.1588274,91933.0,91932.0,0.00016317]
[1763634987127,0.1578274,91933.0,91932.0,0.00016317]
[1763634987327,0.1588274,91933.0,91932.0,0.00016317]
[1763634987828,0.1578274,91933.0,91932.0,0.00016317]
[1763634988028,0.1588274,91933.0,91932.0,0.00016317]
[1763634988722,0.1588274,91933.0,91932.0,0.0023612]
[1763634990020,0.1578274,91933.0,91932.0,0.0023612]
[1763634990931,0.1568274,91933.0,91932.0,0.0023612]
[1763634992632,0.1578274,91933.0,91932.0,0.0023612]
[1763634993022,0.1568274,91933.0,91932.0,0.0224312]
[1763634993230,0.1578274,91933.0,91932.0,0.0417712]
[1763634993730,0.1568274,91933.0,91932.0,0.0417712]
[1763634994118,0.1568274,91933.0,91932.0,0.0023612]
[1763634996424,0.1578274,91933.0,91932.0,0.0023612]
[1763634996836,0.1568274,91933.0,91932.0,0.0023612]
[1763634997031,0.1578274,91933.0,91932.0,0.0023612]
[1763634998430,0.178294,91919.0,91918.0,0.3608]
[1763634998631,0.08926,91910.0,91909.0,0.3608]
[1763634999731,0.08926,91910.0,91909.0,0.36299803]
[1763635002129,0.08926,91910.0,91909.0,0.39903803]
[1763635002725,0.08926,91910.0,91909.0,0.3608]
[1763635003327,0.1783201,91897.0,91896.0,0.3608]
[1763635003719,0.1783201,91897.0,91896.0,0.36299803]
[1763635003921,0.1783201,91897.0,91896.0,0.43317803]
[1763635004527,0.1783201,91897.0,91896.0,0.39903803]
[1763635004732,0.1783201,91897.0,91896.0,0.36299803]
[1763635005030,0.1783201,91897.0,91896.0,0.36399803]
[1763635005335,0.1783201,91897.0,91896.0,0.00319803]
[1763635005833,0.1783201,91897.0,91896.0,0.43417803]
[1763635006132,0.01988,91910.0,91896.0,0.43417803]
[1763635006133,0.10496,91906.0,91896.0,0.56131933]
[1763635006322,0.17434,91906.0,91905.0,0.43098]
[1763635006527,0.17434,91906.0,91905.0,0.43317803]
[1763635007035,0.13935,91906.0,91905.0,0.43317803]
[1763635008042,0.17434,91906.0,91905.0,0.43417803]
[1763635008538,0.17434,91906.0,91905.0,0.001]
[1763635014628,0.2832694,91906.0,91905.0,0.001]
[1763635015038,0.2832694,91906.0,91887.0,0.3608]
[1763635015039,0.1783308,91888.0,91887.0,0.12838872]
[1763635015238,0.1783308,91888.0,91887.0,0.07237803]
[1763635021428,0.1433383,91891.0,91887.0,0.00219803]
[1763635021632,0.1089508,91888.0,91887.0,0.11114883]
[1763635021827,0.1089438,91894.0,91887.0,0.11115003]
[1763635022034,0.10512317,91897.0,91896.0,0.1793313]
[1763635022230,0.21406327,91897.0,91896.0,0.55930933]
[1763635022437,0.10910327,91897.0,91896.0,0.55930933]
[1763635022838,0.10910327,91897.0,91896.0,0.45036803]
[1763635023234,0.17883327,91897.0,91896.0,0.43338803]
[1763635024644,0.14327327,91897.0,91896.0,0.43338803]
[1763635024834,0.14327327,91897.0,91896.0,0.45215803]
[1763635024835,0.10910327,91897.0,91896.0,0.45215803]
[1763635025230,0.17883327,91897.0,91896.0,0.43338803]
[1763635025832,0.00016317,91897.0,91896.0,0.45215803]
[1763635026037,0.10910327,91897.0,91896.0,0.56109933]
[1763635026740,0.17883327,91897.0,91896.0,0.43338803]
[1763635031544,0.17883327,91897.0,91896.0,0.39797803]
[1763635031941,0.17883327,91897.0,91896.0,0.43232803]
[1763635037345,0.17883327,91897.0,91896.0,0.54126933]
[1763635037742,0.17883327,91897.0,91896.0,0.43232803]
[1763635041752,0.17883327,91897.0,91896.0,0.54126933]
[1763635042648,0.14327327,91897.0,91896.0,0.54126933]
[1763635042951,0.10910327,91897.0,91896.0,0.56003933]
[1763635043649,0.00016317,91897.0,91896.0,0.56003933]
[1763635043841,0.1089395,91898.0,91896.0,0.56003933]
[1763635043842,0.1089351,91902.0,91901.0,0.1463916]
[1763635044042,0.1089351,91902.0,91901.0,0.14858963]
[1763635045253,0.1431051,91902.0,91901.0,0.03965803]
[1763635045451,0.1786651,91902.0,91901.0,0.03965803]
[1763635045854,0.1431051,91902.0,91901.0,0.03965803]
[1763635048257,0.00016317,91911.0,91901.0,0.03965803]
[1763635048258,0.00016317,91911.0,91910.0,0.03746]
[1763635048456,0.00016317,91911.0,91910.0,0.14858273]
[1763635048655,0.06989317,91911.0,91910.0,0.14858273]
[1763635049250,0.00016317,91911.0,91910.0,0.14858273]
[1763635051253,0.03309317,91911.0,91910.0,0.14858273]
[1763635051455,0.06537317,91911.0,91910.0,0.14858273]
[1763635056855,0.06537317,91911.0,91910.0,0.03965803]
[1763635057054,0.06537317,91911.0,91910.0,0.00219803]
[1763635057559,0.06537317,91911.0,91910.0,0.04109618]
[1763635057866,0.06537317,91911.0,91910.0,0.00219803]
[1763635062755,0.06807,91909.0,91908.0,0.03889815]
[1763635066063,0.1957571,91908.0,91907.0,0.3608]
[1763635066758,0.1770006,91905.0,91904.0,0.03889815]
[1763635067064,0.1770089,91898.0,91897.0,0.03889815]
[1763635068567,0.1770089,91898.0,91897.0,0.05290815]
[1763635068953,0.1770089,91898.0,91897.0,0.03889815]
[1763635069661,0.1770089,91898.0,91897.0,0.05510618]
[1763635072160,0.1770089,91898.0,91897.0,0.04109618]
[1763635072363,0.1770089,91898.0,91897.0,0.00219803]
[1763635072560,0.1770089,91898.0,91897.0,0.04109618]
[1763635072861,0.1770089,91898.0,91897.0,0.00219803]
[1763635074266,0.1770125,91895.0,91894.0,0.01401]
[1763635074763,0.1770125,91895.0,91893.0,0.03889815]
[1763635074764,0.06807,91894.0,91893.0,0.03889815]
[1763635075066,0.06807,91889.0,91888.0,0.03889815]
[1763635075361,0.1770208,91888.0,91886.0,0.03917023]
[1763635075952,0.1770208,91888.0,91886.0,0.00027208]
[1763635076164,0.2819808,91888.0,91886.0,0.00027208]
[1763635076361,0.2819808,91888.0,91887.0,0.058562]
[1763635078279,0.2819808,91888.0,91887.0,0.00016317]
[1763635078476,0.2819808,91888.0,91887.0,0.0303812]
[1763635078770,0.2819808,91888.0,91887.0,0.1393332]
[1763635079172,0.2819808,91888.0,91887.0,0.19770277]
[1763635079566,0.2819808,91888.0,91887.0,0.08875077]
[1763635080569,0.2819808,91888.0,91887.0,0.07474077]
[1763635081073,0.3608,91897.0,91896.0,0.02802]
[1763635081277,0.1423683,91899.0,91898.0,0.02802]
[1763635081576,0.06807,91899.0,91898.0,0.03021803]
[1763635082077,0.06807,91899.0,91898.0,0.01620803]
[1763635082771,0.07442,91891.0,91890.0,0.1089476]
[1763635082977,0.07442,91891.0,91890.0,0.11114563]
[1763635083167,0.07442,91891.0,91890.0,0.18364563]
[1763635083361,0.07442,91891.0,91890.0,0.07469803]
[1763635083565,0.07442,91891.0,91890.0,0.00219803]
[1763635084371,0.07442,91888.0,91887.0,0.00016317]
[1763635084978,0.07442,91888.0,91887.0,0.05862501]
[1763635085273,0.07442,91888.0,91886.0,0.00027208]
[1763635085274,0.183372,91887.0,91886.0,2.08e-06]
[1763635085469,0.2078179,91882.0,91881.0,0.05858095]
[1763635085669,0.1833803,91880.0,91879.0,9.5e-07]
[1763635085870,0.2078345,91868.0,91867.0,0.07794112]
[1763635086073,0.2078345,91868.0,91867.0,0.04159803]
[1763635086273,0.2078345,91868.0,91867.0,0.07469803]
[1763635086876,0.20792796,91868.0,91867.0,0.07469803]
[1763635090075,0.07451346,91868.0,91867.0,0.07469803]
[1763635090280,9.346e-05,91868.0,91867.0,0.07469803]
[1763635093275,0.07451346,91868.0,91867.0,0.07469803]
[1763635093581,0.04026346,91868.0,91867.0,0.07469803]
[1763635093982,9.346e-05,91868.0,91867.0,0.07469803]
[1763635095074,0.04026346,91868.0,91867.0,0.07469803]
[1763635095269,9.346e-05,91868.0,91867.0,0.07469803]
[1763635096983,0.07451346,91868.0,91867.0,0.07469803]
[1763635097675,0.04026346,91868.0,91867.0,0.07469803]
[1763635098977,0.04033326,91877.0,91876.0,0.0725]
[1763635099170,0.04033326,91877.0,91876.0,0.07469803]
[1763635099377,0.07458326,91877.0,91876.0,0.07469803]
[1763635100372,0.04033326,91877.0,91876.0,0.07469803]
[1763635100682,0.03933326,91877.0,91876.0,0.07469803]
[1763635101280,0.07358326,91877.0,91876.0,0.07469803]
[1763635102078,0.40097,91880.0,91879.0,0.0725]
[1763635102283,0.43522,91880.0,91879.0,0.18365943]
[1763635103084,0.3608,91880.0,91879.0,0.18365943]
[1763635104083,0.40097,91880.0,91879.0,0.18365943]
[1763635104483,0.3608,91880.0,91879.0,0.18365943]
[1763635104874,0.40097,91880.0,91879.0,0.18365943]
[1763635105071,0.5441803,91880.0,91879.0,0.18365943]
[1763635105480,0.5441803,91880.0,91879.0,0.07469803]
[1763635106486,0.5441803,91880.0,91879.0,0.04159803]
[1763635108079,0.5441803,91880.0,91879.0,0.00219803]
[1763635109184,0.5441803,91880.0,91879.0,0.0608199]
[1763635109681,0.5441803,91880.0,91879.0,0.05862187]
[1763635111184,0.1896938,91877.0,91876.0,0.05862187]
[1763635112289,0.1884621,91870.0,91869.0,0.1862431]
[1763635112591,0.1884621,91870.0,91869.0,0.07946803]
[1763635113182,0.1884621,91870.0,91869.0,0.15740915]
[1763635114180,0.1884621,91870.0,91869.0,0.07946803]
[1763635114789,0.07949,91870.0,91869.0,0.07946803]
[1763635116980,0.04136,91870.0,91869.0,0.07946803]
[1763635117385,0.07949,91870.0,91869.0,0.07946803]
[1763635119589,0.07712,91878.0,91877.0,0.1874338]
[1763635119794,0.07712,91878.0,91877.0,0.18963183]
[1763635120392,0.10003,91878.0,91877.0,0.18963183]
[1763635121992,0.2089926,91878.0,91877.0,0.08066803]
[1763635122183,0.10003,91878.0,91877.0,0.08066803]
[1763635123793,0.10003,91878.0,91877.0,0.00219803]
[1763635124199,0.10003,91878.0,91877.0,0.04277803]
[1763635125199,0.10003,91878.0,91877.0,0.08066803]
[1763635125589,0.10003,91878.0,91877.0,0.18963183]
[1763635125784,0.10003,91878.0,91877.0,0.08066803]
[1763635127901,0.46083,91878.0,91877.0,0.08066803]
[1763635128794,0.07712,91876.0,91875.0,0.07832596]
[1763635128992,0.07712,91876.0,91875.0,0.11890596]
[1763635129393,0.07712,91876.0,91875.0,0.15679596]
[1763635129602,0.07712,91876.0,91875.0,0.15899399]
[1763635130903,0.07712,91876.0,91875.0,0.08066803]
[1763635143619,0.11914637,91876.0,91875.0,0.08066803]
[1763635146312,0.1836433,91869.0,91868.0,0.09784909]
[1763635146508,0.1836433,91869.0,91843.0,0.1090032]
[1763635146509,0.108984,91860.0,91859.0,0.09804476]
[1763635146711,0.1836635,91852.0,91851.0,0.13698471]